fUST/lending_fUST_20241014
["ID","MTS","AMOUNT","RATE_DAILY","PERIOD"]
[340218491,1728851445258,-20852.83378725,0.0002509,2]
[340218492,1728851445267,-219.015656,0.000251,7]
[340218493,1728851445277,-219.015656,0.000251,7]
[340218494,1728851445287,-157.902346,0.000251,7]
[340218495,1728851445296,-157.902346,0.000251,7]
[340218496,1728851445311,-151.0,0.000251,7]
[340218497,1728851445321,-150.112233,0.000251,8]
[340218498,1728851445331,-216.278257,0.000251,7]
[340218499,1728851445341,-151.0,0.000251,2]
[340218500,1728851445351,-164.367766,0.000251,7]
[340218501,1728851445360,-164.367766,0.000251,7]
[340218502,1728851445370,-180.426799,0.00025128,7]
[340218503,1728851445381,-199.336786,0.00025128,7]
[340218504,1728851445390,-199.336786,0.00025128,7]
[340218505,1728851445400,-226.27946,0.00025128,7]
[340218506,1728851445410,-226.27946,0.00025128,7]
[340218507,1728851445419,-250.0,0.00025132,2]
[340218508,1728851445428,-500.0,0.00025139,2]
[340218509,1728851445438,-398.73978154,0.00025139,2]
[340218510,1728851445447,-500.0,0.00025139,2]
[340218511,1728851445457,-151.0,0.00025146,7]
[340218512,1728851445466,-250.0,0.00025198,2]
[340218513,1728851445475,-150.112233,0.000252,5]
[340218514,1728851445484,-300.36,0.000252,9]
[340218515,1728851445493,-250.0,0.00025264,2]
[340218516,1728851445502,-457.12380928,0.00025273,2]
[340218517,1728851445512,-151.0,0.00025273,2]
[340218518,1728851445521,-164.367766,0.00025273,7]
[340218519,1728851445531,-164.367766,0.00025273,7]
[340218520,1728851445541,-199.336786,0.00025273,7]
[340218521,1728851445550,-199.336786,0.00025273,7]
[340218522,1728851445563,-226.27946,0.00025273,7]
[340218523,1728851445573,-226.27946,0.00025273,7]
[340218524,1728851445582,-157.902346,0.000253,7]
[340218525,1728851445591,-157.902346,0.000253,7]
[340218526,1728851445601,-151.0,0.000253,7]
[340218527,1728851445611,-150.112233,0.000253,10]
[340218528,1728851445620,-250.0,0.0002533,2]
[340218529,1728851445629,-14292.4631562,0.00025338,3]
[340218530,1728851445639,-157.902346,0.00025348,7]
[340218531,1728851445649,-157.902346,0.00025348,7]
[340218532,1728851445658,-151.0,0.00025348,7]
[340218533,1728851445668,-267.265627,0.00025348,2]
[340218534,1728851445678,-164.367766,0.00025348,7]
[340218535,1728851445688,-164.36776,0.00025348,7]
[340218536,1728851445699,-199.336786,0.00025348,7]
[340218537,1728851445709,-199.336788,0.00025348,7]
[340218538,1728851445720,-226.27946,0.00025348,7]
[340218539,1728851445729,-226.279463,0.00025348,7]
[340218540,1728851445739,-219.015656,0.00025358,7]
[340218541,1728851445748,-219.015656,0.00025358,7]
[340218542,1728851445758,-250.0,0.00025396,2]
[340218543,1728851445768,-150.112233,0.000254,9]
[340218544,1728851445779,-164.06127219,0.00025459,2]
[340218545,1728851445788,-150.112233,0.000255,7]
[340218546,1728851445799,-150.112233,0.000256,7]
[340218547,1728851445808,-150.112233,0.000257,9]
[340218548,1728851445880,-150.112233,0.000258,7]
[340218549,1728851445890,-200.0,0.0002587,13]
[340218550,1728851445899,-262.0,0.0002589,2]
[340218551,1728851445908,-156.0,0.0002589,2]
[340218552,1728851445919,-150.112233,0.000259,6]
[340218553,1728851445929,-150.112233,0.000259,10]
[340218554,1728851445939,-150.112233,0.00026,9]
[340218555,1728851445949,-164.06127219,0.0002603,2]
[340218556,1728851445959,-150.112233,0.000261,7]
[340218557,1728851445969,-157.902346,0.000261,7]
[340218558,1728851445978,-157.902346,0.000261,7]
[340218559,1728851445990,-269.695045,0.000261,7]
[340218560,1728851446000,-500.0,0.00026109,10]
[340218561,1728851446011,-150.112233,0.000262,6]
[340218562,1728851446020,-15853.9469888,0.00026257,2]
[340218563,1728851446030,-150.112233,0.000263,5]
[340218564,1728851446041,-150.112236,0.000263,7]
[340218565,1728851446053,-1078.557,0.00026321,2]
[340218566,1728851446063,-155.0,0.00026321,2]
[340218567,1728851446074,-1157.0,0.00026321,2]
[340218568,1728851446085,-151.236,0.00026321,2]
[340218569,1728851446096,-1025.84,0.00026343,3]
[340218570,1728851446106,-512.92,0.00026343,3]
[340218571,1728851446116,-2051.68,0.00026352,3]
[340218572,1728851446127,-1096.48285948,0.00026382,2]
[340218573,1728851446137,-150.112233,0.000264,9]
[340218574,1728851446147,-219.015656,0.00026432,7]
[340218575,1728851446160,-219.015656,0.00026432,7]
[340218576,1728851446170,-157.902346,0.00026432,7]
[340218577,1728851446179,-157.902338,0.00026432,7]
[340218578,1728851446189,-1000.0,0.00026442,2]
[340218579,1728851446199,-476.59051778,0.00026442,2]
[340218580,1728851446210,-1000.0,0.00026442,2]
[340218581,1728851446221,-335.46923547,0.00026442,2]
[340218582,1728851446231,-1000.0,0.00026442,2]
[340218583,1728851446241,-500.0,0.00026442,2]
[340218584,1728851446250,-1000.0,0.00026442,2]
[340218585,1728851446259,-1000.0,0.00026442,2]
[340218586,1728851446268,-150.112233,0.000265,10]
[340218587,1728851446278,-150.112233,0.000265,6]
[340218588,1728851446287,-500.0,0.00026509,2]
[340218589,1728851446297,-507.44901151,0.00026509,2]
[340218590,1728851446312,-151.0,0.00026522,7]
[340218591,1728851446333,-177.194736,0.00026522,7]
[340218592,1728851446349,-219.015656,0.00026522,7]
[340218594,1728851446368,-219.015656,0.00026522,7]
[340218596,1728851446386,-219.015656,0.00026522,7]
[340218597,1728851446408,-219.015656,0.00026522,7]
[340218599,1728851446427,-14292.4631562,0.00026532,4]
[340218600,1728851446446,-151.0,0.00026532,7]
[340218601,1728851446465,-151.0,0.00026532,7]
[340218602,1728851446480,-151.0,0.00026532,7]
[340218603,1728851446496,-299.835,0.00026532,7]
[340218604,1728851446515,-299.835,0.00026532,7]
[340218605,1728851446534,-219.015656,0.00026532,7]
[340218606,1728851446551,-219.015656,0.00026532,7]
[340218607,1728851446564,-219.015656,0.00026532,7]
[340218608,1728851446580,-219.015656,0.00026532,7]
[340218609,1728851446593,-219.015656,0.00026532,7]
[340218610,1728851446611,-219.015655,0.00026532,7]
[340218611,1728851446626,-151.0,0.00026542,7]
[340218612,1728851446639,-299.835,0.00026542,7]
[340218614,1728851446656,-299.835,0.00026542,7]
[340218615,1728851446671,-166.089454,0.00026568,2]
[340218616,1728851446687,-2343.09,0.000266,14]
[340218617,1728851446702,-150.112233,0.000266,6]
[340218618,1728851446717,-164.06127219,0.000266,2]
[340218619,1728851446734,-171.987,0.00026669,2]
[340218620,1728851446749,-250.0,0.0002667,2]
[340218621,1728851446762,-29423.5081847,0.00026681,2]
[340218622,1728851446776,-150.112233,0.000267,8]
[340218623,1728851446791,-150.112233,0.000267,8]
[340218624,1728851446807,-150.112233,0.000268,6]
[340218625,1728851446822,-150.112233,0.000268,9]
[340218626,1728851446838,-25122.82874587,0.00026832,4]
[340218627,1728851447124,-561.113826,0.00024982,7]
[340218628,1728851447135,-151.0,0.00024982,7]
[340218629,1728851447144,-151.0,0.0002499,7]
[340218630,1728851447153,-561.113826,0.0002499,7]
[340218631,1728851447163,-151.0,0.00024992,7]
[340218632,1728851447171,-561.113826,0.00024992,7]
[340218633,1728851447182,-151.0,0.00024993,7]
[340218634,1728851447192,-561.113826,0.00024993,7]
[340218635,1728851447201,-516.34469596,0.00026832,4]
[340218636,1728851447377,-151.0,0.00024982,7]
[340218637,1728851447391,-151.0,0.00025,7]
[340218638,1728851447402,-561.113826,0.00025,7]
[340218639,1728851447413,-151.0,0.00025,7]
[340218640,1728851447424,-561.113826,0.00025,7]
[340218641,1728851447434,-561.113826,0.00025002,7]
[340218642,1728851447444,-561.113826,0.00025002,7]
[340218643,1728851447456,-561.113826,0.00025002,7]
[340218644,1728851447467,-561.113816,0.00025002,7]
[340218645,1728851447477,-31530.67918297,0.00026832,4]
[340218646,1728851447486,-151.0,0.00026832,7]
[340218647,1728851447496,-299.835,0.00026832,7]
[340218648,1728851447506,-299.835,0.00026832,7]
[340218649,1728851447515,-163484.70968484,0.00026842,2]
[340218650,1728851447525,-151.0,0.00026842,7]
[340218651,1728851447534,-299.835,0.00026842,7]
[340218652,1728851447543,-299.835,0.00026842,7]
[340218653,1728851447553,-293.0810405,0.00026849,2]
[340218654,1728851447562,-500.0,0.00026873,2]
[340218655,1728851447571,-500.0,0.00026873,2]
[340218656,1728851447581,-345.72756834,0.00026873,2]
[340218657,1728851447591,-500.0,0.00026873,2]
[340218658,1728851447601,-500.0,0.00026873,2]
[340218659,1728851447610,-500.0,0.00026873,2]
[340218660,1728851447620,-500.0,0.00026873,2]
[340218661,1728851447629,-500.0,0.00026873,2]
[340218662,1728851447639,-500.0,0.00026873,2]
[340218663,1728851447648,-500.0,0.00026873,2]
[340218664,1728851447658,-177.22660455,0.00026873,2]
[340218665,1728851447667,-500.0,0.00026873,2]
[340218666,1728851447677,-500.0,0.00026873,2]
[340218667,1728851447686,-378.27493434,0.00026873,2]
[340218668,1728851447696,-500.0,0.00026873,2]
[340218669,1728851447706,-3000.0,0.000269,2]
[340218670,1728851447715,-3000.0,0.0002691,2]
[340218671,1728851447725,-153.0,0.00026914,2]
[340218672,1728851447735,-153.0,0.00026914,2]
[340218673,1728851447744,-153.0,0.00026914,2]
[340218674,1728851447754,-153.0,0.00026914,2]
[340218675,1728851447764,-153.0,0.00026914,2]
[340218676,1728851447774,-3000.0,0.0002692,2]
[340218677,1728851447783,-3000.0,0.0002693,2]
[340218678,1728851447792,-3000.0,0.0002694,2]
[340218679,1728851447802,-3000.0,0.0002695,2]
[340218680,1728851447812,-420.0,0.00026958,2]
[340218681,1728851447821,-3000.0,0.0002696,2]
[340218682,1728851447831,-3000.0,0.0002697,2]
[340218683,1728851447841,-501.41845279,0.0002698,10]
[340218684,1728851447851,-3000.0,0.0002698,2]
[340218685,1728851447860,-14292.4631562,0.0002698,4]
[340218686,1728851447870,-3000.0,0.0002699,2]
[340218687,1728851447880,-10551.08524,0.00027,2]
[340218688,1728851447890,-150.112233,0.00027,6]
[340218689,1728851447899,-151.0,0.00027,7]
[340218690,1728851447909,-299.835,0.00027,7]
[340218691,1728851447918,-299.835,0.00027,7]
[340218692,1728851447928,-3000.0,0.00027,2]
[340218693,1728851447937,-3210.62489,0.0002701,2]
[340218694,1728851447948,-503.6866096,0.00027084,2]
[340218695,1728851447958,-5471.22884236,0.00027156,2]
[340218696,1728851447969,-266.0,0.00027185,2]
[340218697,1728851447979,-150.0,0.000272,2]
[340218698,1728851447988,-1387.0,0.00027219,12]
[340218699,1728851447998,-2649.51282379,0.00027235,2]
[340218700,1728851448008,-14292.4631562,0.0002729,4]
[340218701,1728851448018,-2802.96,0.000273,14]
[340218702,1728851448028,-1671.59,0.000273,14]
[340218703,1728851448038,-19696.62698402,0.000273,2]
[340218704,1728851448051,-29109.35675389,0.000273,2]
[340218705,1728851448061,-151.0,0.000273,7]
[340218706,1728851448071,-299.835,0.000273,7]
[340218707,1728851448080,-299.835,0.000273,7]
[340218708,1728851448089,-420.0,0.00027369,2]
[340218709,1728851448099,-500.0,0.00027373,2]
[340218710,1728851448108,-501.25373238,0.00027373,2]
[340218711,1728851448118,-150.0,0.00027373,2]
[340218712,1728851448128,-353.5,0.00027373,2]
[340218713,1728851448138,-256.592136,0.00027397,7]
[340218714,1728851448148,-299.835,0.00027397,7]
[340218715,1728851448158,-299.835,0.00027397,7]
[340218716,1728851448168,-299.835,0.00027397,7]
[340218717,1728851448177,-299.835,0.00027397,7]
[340218718,1728851448187,-299.835,0.00027397,7]
[340218719,1728851448196,-299.835,0.00027397,7]
[340218720,1728851448206,-299.835,0.00027397,7]
[340218721,1728851448216,-299.835,0.00027397,7]
[340218722,1728851448226,-3467.84,0.00027397,2]
[340218723,1728851448237,-3467.84,0.00027397,2]
[340218724,1728851448246,-3467.84,0.00027397,2]
[340218725,1728851448256,-3467.84,0.00027397,2]
[340218726,1728851448266,-3467.84,0.00027397,2]
[340218727,1728851448276,-3467.84,0.00027397,2]
[340218728,1728851448285,-3467.84,0.00027397,2]
[340218729,1728851448358,-3467.84,0.00027397,2]
[340218730,1728851448369,-3467.84,0.00027397,2]
[340218731,1728851448378,-3467.84,0.00027397,2]
[340218732,1728851448389,-500.0,0.00027397,2]
[340218733,1728851448398,-3467.84,0.00027397,2]
[340218734,1728851448410,-3467.84,0.00027397,2]
[340218735,1728851448420,-3467.84,0.00027397,2]
[340218736,1728851448431,-3467.84,0.00027397,2]
[340218737,1728851448442,-3467.84,0.00027397,2]
[340218738,1728851448452,-3467.84,0.00027397,2]
[340218739,1728851448461,-3467.84,0.00027397,2]
[340218740,1728851448471,-3467.84,0.00027397,2]
[340218741,1728851448481,-3467.84,0.00027397,2]
[340218742,1728851448491,-3467.84,0.00027397,2]
[340218743,1728851448500,-2480.35147342,0.00027397,2]
[340218744,1728851448595,-293.52578636,0.00024999,2]
[340218745,1728851448604,-987.48852658,0.00027397,2]
[340218746,1728851448614,-3467.84,0.00027397,2]
[340218747,1728851448624,-3467.84,0.00027397,2]
[340218748,1728851448634,-3467.85892472,0.00027397,2]
[340218749,1728851448643,-500.0,0.00027397,2]
[340218750,1728851448653,-573.74200867,0.00027397,2]
[340218751,1728851448664,-213.80886441,0.00027397,2]
[340218752,1728851448674,-621.12543238,0.00027397,2]
[340218753,1728851448684,-598.60442733,0.00027397,2]
[340218754,1728851448694,-500.0,0.00027397,2]
[340218755,1728851448703,-500.0,0.00027397,2]
[340218756,1728851448712,-500.0,0.00027397,2]
[340218757,1728851448723,-521.03567613,0.00027397,2]
[340218758,1728851448732,-500.0,0.00027397,2]
[340218759,1728851448744,-500.0,0.00027397,2]
[340218760,1728851448753,-500.0,0.00027397,2]
[340218761,1728851448763,-332.96577704,0.00027397,2]
[340218762,1728851448773,-522.68424227,0.00027397,2]
[340218763,1728851448783,-508.65880504,0.00027397,2]
[340218764,1728851448792,-525.90643962,0.00027397,2]
[340218765,1728851448803,-500.0,0.00027397,2]
[340218766,1728851448812,-918.44,0.00027397,2]
[340218767,1728851448822,-532.90487635,0.00027397,2]
[340218768,1728851448832,-507.25036364,0.00027397,2]
[340218769,1728851448843,-500.0,0.00027397,2]
[340218770,1728851448853,-508.29396043,0.00027397,2]
[340218771,1728851448863,-262.60602219,0.00027397,2]
[340218772,1728851448872,-528.06287556,0.00027397,2]
[340218773,1728851448882,-1370.24,0.00027397,2]
[340218774,1728851448892,-1370.24,0.00027397,2]
[340218775,1728851448902,-500.0,0.00027397,2]
[340218776,1728851448911,-1370.24,0.00027397,2]
[340218777,1728851448920,-1370.24,0.00027397,2]
[340218778,1728851448930,-1370.24,0.00027397,2]
[340218779,1728851448939,-1370.24,0.00027397,2]
[340218780,1728851448949,-1370.24,0.00027397,2]
[340218781,1728851448959,-500.0,0.00027397,2]
[340218782,1728851448969,-1370.24,0.00027397,2]
[340218783,1728851448979,-1370.24,0.00027397,2]
[340218784,1728851448988,-1370.24,0.00027397,2]
[340218785,1728851448998,-1370.24,0.00027397,2]
[340218786,1728851449007,-1370.24,0.00027397,2]
[340218787,1728851449017,-1370.24,0.00027397,2]
[340218788,1728851449027,-1370.24,0.00027397,2]
[340218789,1728851449036,-1370.24,0.00027397,2]
[340218790,1728851449046,-1370.24,0.00027397,2]
[340218791,1728851449056,-1370.24,0.00027397,2]
[340218792,1728851449066,-1370.24,0.00027397,2]
[340218793,1728851449076,-1370.24,0.00027397,2]
[340218794,1728851449085,-1370.24,0.00027397,2]
[340218795,1728851449095,-1370.24,0.00027397,2]
[340218796,1728851449105,-1370.24,0.00027397,2]
[340218797,1728851449115,-1370.24,0.00027397,2]
[340218798,1728851449125,-1370.2712206,0.00027397,2]
[340218799,1728851449135,-500.0,0.00027397,2]
[340218800,1728851449144,-538.55336686,0.00027397,2]
[340218801,1728851449153,-500.0,0.00027397,2]
[340218802,1728851449163,-500.0,0.00027397,2]
[340218803,1728851449173,-500.0,0.00027397,2]
[340218804,1728851449182,-500.0,0.00027397,2]
[340218805,1728851449192,-500.0,0.00027397,2]
[340218806,1728851449201,-500.0,0.00027397,2]
[340218807,1728851449211,-500.0,0.00027397,2]
[340218808,1728851449221,-500.0,0.00027397,2]
[340218809,1728851449230,-358.40521441,0.00027397,2]
[340218810,1728851449240,-320.56745494,0.00027397,2]
[340218811,1728851449249,-539.37007167,0.00027397,2]
[340218812,1728851449259,-500.0,0.00027397,2]
[340218813,1728851449268,-500.0,0.00027397,2]
[340218814,1728851449278,-500.0,0.00027397,2]
[340218815,1728851449288,-534.4463532,0.00027397,2]
[340218816,1728851449298,-500.0,0.00027397,2]
[340218817,1728851449309,-595.05292652,0.00027397,2]
[340218818,1728851449321,-500.0,0.00027397,2]
[340218819,1728851449331,-153.77194057,0.00027397,2]
[340218820,1728851449341,-540.32605616,0.00027397,2]
[340218821,1728851449351,-373.28401724,0.00027397,2]
[340218822,1728851449362,-500.0,0.00027397,2]
[340218823,1728851449372,-500.0,0.00027397,2]
[340218824,1728851449383,-524.88209634,0.00027397,2]
[340218825,1728851449393,-155.13784315,0.00027397,2]
[340218826,1728851449403,-500.0,0.00027397,2]
[340218827,1728851449413,-544.17873264,0.00027397,2]
[340218828,1728851449423,-500.0,0.00027397,2]
[340218829,1728851449433,-153.46939193,0.00027397,2]
[340218830,1728851449442,-1570.44,0.00027397,2]
[340218831,1728851449452,-520.13236658,0.00027397,2]
[340218832,1728851449462,-500.0,0.00027397,2]
[340218833,1728851449471,-2567.07,0.00027397,2]
[340218834,1728851449481,-586.35549014,0.00027397,2]
[340218835,1728851449491,-266.10109903,0.00027397,2]
[340218836,1728851449501,-500.0,0.00027397,2]
[340218837,1728851449511,-500.0,0.00027397,2]
[340218838,1728851449520,-557.42206419,0.00027397,2]
[340218839,1728851449530,-534.32464025,0.00027397,2]
[340218840,1728851449540,-521.24678099,0.00027397,2]
[340218841,1728851449550,-500.0,0.00027397,2]
[340218842,1728851449559,-500.0,0.00027397,2]
[340218843,1728851449571,-500.0,0.00027397,2]
[340218844,1728851449580,-500.0,0.00027397,2]
[340218845,1728851449589,-150.70193568,0.00027397,2]
[340218846,1728851449598,-611.44276672,0.00027397,2]
[340218847,1728851449608,-519.56693511,0.00027397,2]
[340218848,1728851449617,-500.0,0.00027397,2]
[340218849,1728851449687,-500.0,0.00027397,2]
[340218850,1728851449696,-500.0,0.00027397,2]
[340218851,1728851449707,-500.0,0.00027397,2]
[340218852,1728851449717,-629.80402473,0.00027397,2]
[340218853,1728851449726,-511.10410422,0.00027397,2]
[340218854,1728851449736,-500.0,0.00027397,2]
[340218855,1728851449746,-500.0,0.00027397,2]
[340218856,1728851449757,-362.98889366,0.00027397,2]
[340218857,1728851449766,-194.34692804,0.00027397,2]
[340218858,1728851449775,-538.6508409,0.00027397,2]
[340218859,1728851449785,-531.499187,0.00027397,2]
[340218860,1728851449794,-506.39620918,0.00027397,2]
[340218861,1728851449803,-2029.63,0.00027397,2]
[340218862,1728851449814,-516.82638097,0.00027397,2]
[340218863,1728851449823,-500.0,0.00027397,2]
[340218864,1728851449832,-526.67883539,0.00027397,2]
[340218865,1728851449842,-500.0,0.00027397,2]
[340218866,1728851449851,-551.40583943,0.00027397,2]
[340218867,1728851449861,-519.56056687,0.00027397,2]
[340218868,1728851449871,-510.49682382,0.00027397,2]
[340218869,1728851449880,-194.28394297,0.00027397,2]
[340218870,1728851449889,-500.0,0.00027397,2]
[340218871,1728851449899,-343.67391723,0.00027397,2]
[340218872,1728851449910,-443.80134485,0.00027397,2]
[340218873,1728851449921,-500.0,0.00027397,2]
[340218874,1728851449930,-500.0,0.00027397,2]
[340218875,1728851449941,-589.72035698,0.00027397,2]
[340218876,1728851449951,-1008.11,0.00027397,2]
[340218877,1728851449962,-203.39735663,0.00027397,2]
[340218878,1728851449972,-500.0,0.00027397,2]
[340218879,1728851449982,-574.97231886,0.00027397,2]
[340218880,1728851449991,-500.0,0.00027397,2]
[340218881,1728851450001,-2397.78,0.00027397,2]
[340218882,1728851450011,-2397.78,0.00027397,2]
[340218883,1728851450021,-2397.78,0.00027397,2]
[340218884,1728851450030,-2397.78,0.00027397,2]
[340218885,1728851450041,-2397.78,0.00027397,2]
[340218886,1728851450050,-2397.78,0.00027397,2]
[340218887,1728851450062,-2397.78,0.00027397,2]
[340218888,1728851450072,-2397.78,0.00027397,2]
[340218889,1728851450082,-2397.78,0.00027397,2]
[340218890,1728851450091,-2397.78,0.00027397,2]
[340218891,1728851450101,-2397.78,0.00027397,2]
[340218892,1728851450110,-2397.78,0.00027397,2]
[340218893,1728851450119,-2397.78,0.00027397,2]
[340218894,1728851450129,-2397.78,0.00027397,2]
[340218895,1728851450139,-2397.78,0.00027397,2]
[340218896,1728851450149,-2397.78,0.00027397,2]
[340218897,1728851450158,-2397.78,0.00027397,2]
[340218898,1728851450168,-2397.78,0.00027397,2]
[340218899,1728851450178,-2397.78,0.00027397,2]
[340218900,1728851450188,-2397.78,0.00027397,2]
[340218901,1728851450198,-2397.78,0.00027397,2]
[340218902,1728851450209,-2397.78,0.00027397,2]
[340218903,1728851450219,-2397.78,0.00027397,2]
[340218904,1728851450228,-2397.93321453,0.00027397,2]
[340218905,1728851450238,-342.30222038,0.00027397,2]
[340218906,1728851450247,-500.0,0.00027397,2]
[340218907,1728851450257,-500.0,0.00027397,2]
[340218908,1728851450267,-507.60066487,0.00027397,2]
[340218909,1728851450276,-332.05885399,0.00027397,2]
[340218910,1728851450285,-500.0,0.00027397,2]
[340218911,1728851450295,-500.0,0.00027397,2]
[340218912,1728851450304,-503.03881508,0.00027397,2]
[340218913,1728851450318,-197.35712859,0.00027397,2]
[340218914,1728851450327,-551.72667171,0.00027397,2]
[340218915,1728851450337,-164.98957508,0.00027397,2]
[340218916,1728851450347,-520.48382836,0.00027397,2]
[340218917,1728851450356,-552.01579773,0.00027397,2]
[340218918,1728851450365,-290.66635936,0.00027397,2]
[340218919,1728851450375,-545.1557187,0.00027397,2]
[340218920,1728851450387,-625.35,0.00027397,2]
[340218921,1728851450397,-8447.6,0.00027397,2]
[340218922,1728851450407,-2000.0,0.00027397,2]
[340218923,1728851450416,-156.3484763,0.00027397,2]
[340218924,1728851450426,-500.0,0.00027397,2]
[340218925,1728851450434,-500.0,0.00027397,2]
[340218926,1728851450446,-500.0,0.00027397,2]
[340218927,1728851450458,-528.90488291,0.00027397,2]
[340218928,1728851450469,-500.0,0.00027397,2]
[340218929,1728851450479,-550.4008737,0.00027397,2]
[340218930,1728851450491,-527.25494954,0.00027397,2]
[340218931,1728851450500,-500.0,0.00027397,2]
[340218932,1728851450509,-221.62682436,0.00027397,2]
[340218933,1728851450519,-702.17,0.00027397,2]
[340218934,1728851450528,-549.17485798,0.00027397,2]
[340218935,1728851450537,-500.0,0.00027397,2]
[340218936,1728851450548,-500.0,0.00027397,2]
[340218937,1728851450558,-517.41513424,0.00027397,2]
[340218938,1728851450568,-567.71007976,0.00027397,2]
[340218939,1728851450580,-2095.03,0.00027397,2]
[340218940,1728851450593,-500.0,0.00027397,2]
[340218941,1728851450604,-500.0,0.00027397,2]
[340218942,1728851450614,-166.19518864,0.00027397,2]
[340218943,1728851450627,-579.6587841,0.00027397,2]
[340218944,1728851450638,-500.0,0.00027397,2]
[340218945,1728851450650,-500.0,0.00027397,2]
[340218946,1728851450660,-500.0,0.00027397,2]
[340218947,1728851450671,-500.0,0.00027397,2]
[340218948,1728851450682,-500.0,0.00027397,2]
[340218949,1728851450692,-500.0,0.00027397,2]
[340218950,1728851450702,-500.0,0.00027397,2]
[340218951,1728851450712,-474.97156623,0.00027397,2]
[340218952,1728851450722,-500.0,0.00027397,2]
[340218953,1728851450732,-500.0,0.00027397,2]
[340218954,1728851450743,-500.0,0.00027397,2]
[340218955,1728851450754,-500.0,0.00027397,2]
[340218956,1728851450765,-500.0,0.00027397,2]
[340218957,1728851450774,-500.0,0.00027397,2]
[340218958,1728851450784,-500.0,0.00027397,2]
[340218959,1728851450793,-500.0,0.00027397,2]
[340218960,1728851450803,-458.09296593,0.00027397,2]
[340218961,1728851466576,153.0,0.0002488,120]
[340218965,1728851981674,166.522363,0.0002375,2]
[340218966,1728852442180,-300.0,0.00024143,2]
[340218967,1728852442202,-300.0,0.00024143,2]
[340218968,1728852442223,-2788.13900307,0.00024144,2]
[340218971,1728852536281,154.0,0.0002488,120]
[340218972,1728852542709,166.522363,0.00023772,2]
[340219008,1728852631789,-164.928839,0.00024368,2]
[340219010,1728852631798,-250.0,0.00024487,2]
[340219013,1728852631808,-250.0,0.00024554,2]
[340219015,1728852631819,-168.068325,0.00024558,2]
[340219017,1728852631829,-211.8949435,0.000246,2]
[340219019,1728852631841,-211.89494349,0.000246,2]
[340219021,1728852631851,-250.0,0.00024621,2]
[340219023,1728852631862,-457.12380928,0.00024657,2]
[340219025,1728852631873,-250.0,0.00024688,2]
[340219027,1728852631883,-250.0,0.00024755,2]
[340219029,1728852631893,-300.0,0.00024812,2]
[340219031,1728852631902,-300.0,0.00024812,2]
[340219033,1728852631912,-6451.05404858,0.00024813,2]
[340219406,1728852638191,-4848.45443033,0.00024813,2]
[340219408,1728852638204,-13600.49152109,0.00024813,2]
[340219410,1728852638214,-250.0,0.00024822,2]
[340219412,1728852638225,-250.0,0.00024889,2]
[340219414,1728852638235,-224.958979,0.00024915,2]
[340219416,1728852638245,-250.0,0.00024957,2]
[340219418,1728852638255,-156.0,0.00025,2]
[340219420,1728852638266,-250.0,0.00025024,2]
[340219422,1728852638276,-250.0,0.00025091,2]
[340219425,1728852638286,-250.0,0.00025158,2]
[340219427,1728852638297,-250.0,0.00025225,2]
[340219429,1728852638307,-250.0,0.00025292,2]
[340219431,1728852638317,-250.0,0.0002536,2]
[340219433,1728852638327,-166.522363,0.00025392,2]